[Event "Early-Titled-Tuesday-Blitz-October-10-2023"]
[Site "Chess.com"]
[Date "2023.10.10"]
[Round "10"]
[White "Mikhail_Golubev"]
[Black "kacprekt"]
[Result "1-0"]
[WhiteElo "2615"]
[BlackElo "2487"]
[TimeControl "180+1"]
[EndTime "9:53:48 PDT"]
[Termination "Mikhail_Golubev won by resignation"]

1. e4 {[%clk 0:03:00.9]} 1... Nc6 {[%clk 0:02:58.1]} 2. Nc3 {[%clk 0:02:55.3]}
2... g6 {[%clk 0:02:56.7]} 3. d4 {[%clk 0:02:53.7]} 3... d6 {[%clk 0:02:55.3]}
4. Be3 {[%clk 0:02:52.3]} 4... Bg7 {[%clk 0:02:55.1]} 5. d5 {[%clk 0:02:44.1]}
5... Nb8 {[%clk 0:02:54.8]} 6. Qd2 {[%clk 0:02:39.3]} 6... c6 {[%clk 0:02:54.5]}
7. O-O-O {[%clk 0:02:35.7]} 7... a6 {[%clk 0:02:46.7]} 8. h4 {[%clk 0:02:33.2]}
8... h5 {[%clk 0:02:43.6]} 9. Nh3 {[%clk 0:02:33]} 9... c5 {[%clk 0:02:43.2]}
10. Ng5 {[%clk 0:02:28.1]} 10... b5 {[%clk 0:02:42.1]} 11. e5 {[%clk 0:02:21.6]}
11... Bxe5 {[%clk 0:02:38.7]} 12. f4 {[%clk 0:02:21.5]} 12... Bg7 {[%clk
0:02:37.3]} 13. Bd3 {[%clk 0:02:15]} 13... c4 {[%clk 0:02:35.1]} 14. Bd4 {[%clk
0:01:55.9]} 14... Bxd4 {[%clk 0:02:19.8]} 15. Bxg6 {[%clk 0:01:55.3]} 15... Bf6
{[%clk 0:02:15.8]} 16. Nxf7 {[%clk 0:01:48.1]} 16... Qa5 {[%clk 0:01:58.5]} 17.
Nxd6+ {[%clk 0:01:34.3]} 17... Kd8 {[%clk 0:01:54.3]} 18. Nf7+ {[%clk 0:01:31]}
18... Ke8 {[%clk 0:01:36.3]} 19. d6 {[%clk 0:01:30]} 19... e6 {[%clk 0:01:30.1]}
20. d7+ {[%clk 0:01:06.8]} 20... Bxd7 {[%clk 0:01:24.8]} 21. Ne5+ {[%clk
0:01:06]} 21... Kf8 {[%clk 0:01:11]} 22. Nxd7+ {[%clk 0:01:00.8]} 22... Kg7
{[%clk 0:01:11.2]} 23. Nxf6 {[%clk 0:00:48.4]} 23... Nxf6 {[%clk 0:01:12.1]} 24.
Qd6 {[%clk 0:00:26.3]} 24... Ra7 {[%clk 0:01:05.1]} 25. Ne4 {[%clk 0:00:21.3]}
25... Nbd7 {[%clk 0:00:36.1]} 26. Qxe6 {[%clk 0:00:16.5]} 26... Kxg6 {[%clk
0:00:34]} 27. f5+ {[%clk 0:00:16.7]} 27... Kg7 {[%clk 0:00:27.9]} 28. Qe7+
{[%clk 0:00:16.4]} 28... Kh6 {[%clk 0:00:25.6]} 29. Nxf6 {[%clk 0:00:16.9]}
29... Qxa2 {[%clk 0:00:14.2]} 30. Ng8+ {[%clk 0:00:16.1]} 30... Rxg8 {[%clk
0:00:12.6]} 31. Rd6+ {[%clk 0:00:16.5]} 1-0

[Event "Early-Titled-Tuesday-Blitz-October-10-2023"]
[Site "Chess.com"]
[Date "2023.10.10"]
[Round "10"]
[White "LaPiToB"]
[Black "MMAHDI2013"]
[Result "0-1"]
[WhiteElo "2310"]
[BlackElo "2485"]
[TimeControl "180+1"]
[EndTime "9:53:49 PDT"]
[Termination "MMAHDI2013 won by resignation"]

1. d4 {[%clk 0:03:00.9]} 1... Nf6 {[%clk 0:02:59.5]} 2. c4 {[%clk 0:03:01.5]}
2... e6 {[%clk 0:02:59.5]} 3. Nc3 {[%clk 0:03:01.9]} 3... Bb4 {[%clk 0:03:00.4]}
4. e3 {[%clk 0:03:00.8]} 4... O-O {[%clk 0:02:59.7]} 5. Ne2 {[%clk 0:03:00.7]}
5... d5 {[%clk 0:02:59.5]} 6. a3 {[%clk 0:03:00.6]} 6... Be7 {[%clk 0:02:57]} 7.
cxd5 {[%clk 0:02:57]} 7... exd5 {[%clk 0:02:57.9]} 8. Nf4 {[%clk 0:02:55.8]}
8... c6 {[%clk 0:02:57.6]} 9. Bd3 {[%clk 0:02:55.3]} 9... a5 {[%clk 0:02:56.7]}
10. O-O {[%clk 0:02:54]} 10... Na6 {[%clk 0:02:56.8]} 11. h3 {[%clk 0:02:53]}
11... Nc7 {[%clk 0:02:56.7]} 12. b3 {[%clk 0:02:43.3]} 12... Ne6 {[%clk
0:02:55.6]} 13. Nfe2 {[%clk 0:02:40.2]} 13... c5 {[%clk 0:02:55.1]} 14. dxc5
{[%clk 0:02:37.5]} 14... Nxc5 {[%clk 0:02:55.6]} 15. Bc2 {[%clk 0:02:37.6]}
15... Be6 {[%clk 0:02:54.6]} 16. Bb2 {[%clk 0:02:35.1]} 16... Rc8 {[%clk
0:02:51.8]} 17. Nd4 {[%clk 0:02:32.5]} 17... Bd7 {[%clk 0:02:44.7]} 18. Nce2
{[%clk 0:02:07.5]} 18... Nfe4 {[%clk 0:02:34.1]} 19. Nf4 {[%clk 0:01:48.9]}
19... Bd6 {[%clk 0:02:27.4]} 20. Nxd5 {[%clk 0:01:46.6]} 20... Qg5 {[%clk
0:01:47.8]} 21. Nf4 {[%clk 0:01:12.4]} 21... Bxf4 {[%clk 0:01:21.8]} 22. exf4
{[%clk 0:01:13.3]} 22... Qxf4 {[%clk 0:01:21.8]} 23. b4 {[%clk 0:01:11.1]} 23...
axb4 {[%clk 0:01:20.6]} 24. axb4 {[%clk 0:01:10]} 24... Ne6 {[%clk 0:01:04.7]}
25. Ne2 {[%clk 0:01:08.2]} 25... Qd2 {[%clk 0:01:03.5]} 26. Qxd2 {[%clk
0:00:40.9]} 26... Nxd2 {[%clk 0:00:59.8]} 27. Bd3 {[%clk 0:00:37.4]} 27... Nxf1
{[%clk 0:00:58.2]} 28. Kxf1 {[%clk 0:00:36.5]} 28... Ra8 {[%clk 0:00:56.1]} 29.
Rd1 {[%clk 0:00:35.6]} 29... Rfd8 {[%clk 0:00:53.3]} 30. Rc1 {[%clk 0:00:34.1]}
30... Bc6 {[%clk 0:00:50.9]} 31. Bb1 {[%clk 0:00:32.7]} 31... Rd2 {[%clk
0:00:47.5]} 32. Bc3 {[%clk 0:00:31.3]} 32... Rd7 {[%clk 0:00:34.4]} 33. Ng3
{[%clk 0:00:31.3]} 33... Rad8 {[%clk 0:00:31.8]} 34. Bc2 {[%clk 0:00:29.2]}
34... Bb5+ {[%clk 0:00:31.1]} 35. Kg1 {[%clk 0:00:28.9]} 35... Rc7 {[%clk
0:00:31.1]} 36. Bb2 {[%clk 0:00:26.6]} 36... Rdc8 {[%clk 0:00:29.9]} 37. Nf5
{[%clk 0:00:22.9]} 37... Rxc2 {[%clk 0:00:16]} 0-1

[Event "Early-Titled-Tuesday-Blitz-October-10-2023"]
[Site "Chess.com"]
[Date "2023.10.10"]
[Round "10"]
[White "DanyKopy"]
[Black "LuisFSiles"]
[Result "1-0"]
[WhiteElo "2552"]
[BlackElo "2332"]
[TimeControl "180+1"]
[EndTime "9:53:51 PDT"]
[Termination "DanyKopy won by resignation"]

1. e4 {[%clk 0:03:00.9]} 1... c5 {[%clk 0:02:58.5]} 2. Nf3 {[%clk 0:03:00.6]}
2... Nc6 {[%clk 0:02:58.3]} 3. d4 {[%clk 0:02:55.9]} 3... cxd4 {[%clk
0:02:59.2]} 4. Nxd4 {[%clk 0:02:56.3]} 4... Nf6 {[%clk 0:02:59.7]} 5. Nc3 {[%clk
0:02:55.6]} 5... e5 {[%clk 0:03:00.3]} 6. Ndb5 {[%clk 0:02:55]} 6... d6 {[%clk
0:03:00.9]} 7. Bg5 {[%clk 0:02:54.6]} 7... a6 {[%clk 0:03:01.3]} 8. Na3 {[%clk
0:02:54.2]} 8... b5 {[%clk 0:03:02.2]} 9. Bxf6 {[%clk 0:02:53.9]} 9... gxf6
{[%clk 0:03:03]} 10. Nd5 {[%clk 0:02:54.2]} 10... f5 {[%clk 0:03:03.4]} 11. exf5
{[%clk 0:02:53]} 11... Bxf5 {[%clk 0:02:57.5]} 12. c3 {[%clk 0:02:53.4]} 12...
Bg7 {[%clk 0:02:55]} 13. Nc2 {[%clk 0:02:52.4]} 13... Be6 {[%clk 0:02:54]} 14.
Nce3 {[%clk 0:02:51.8]} 14... Ne7 {[%clk 0:02:53.6]} 15. g3 {[%clk 0:02:46.9]}
15... Nxd5 {[%clk 0:02:52.3]} 16. Nxd5 {[%clk 0:02:46.5]} 16... O-O {[%clk
0:02:52.3]} 17. Bg2 {[%clk 0:02:46.1]} 17... Rb8 {[%clk 0:02:52.8]} 18. O-O
{[%clk 0:02:45.7]} 18... a5 {[%clk 0:02:53.3]} 19. Qe2 {[%clk 0:02:22.5]} 19...
Kh8 {[%clk 0:02:36.5]} 20. a4 {[%clk 0:02:16.4]} 20... b4 {[%clk 0:02:30.3]} 21.
cxb4 {[%clk 0:02:13.1]} 21... Bxd5 {[%clk 0:02:30.1]} 22. Bxd5 {[%clk
0:02:05.9]} 22... Rxb4 {[%clk 0:02:29.6]} 23. b3 {[%clk 0:01:59.2]} 23... f5
{[%clk 0:02:21.1]} 24. Rad1 {[%clk 0:01:55.9]} 24... e4 {[%clk 0:02:15.1]} 25.
Bc4 {[%clk 0:01:42.6]} 25... Be5 {[%clk 0:02:13.3]} 26. Rd5 {[%clk 0:01:39.6]}
26... Qb6 {[%clk 0:01:55.1]} 27. Qh5 {[%clk 0:01:13.6]} 27... e3 {[%clk
0:01:23.8]} 28. fxe3 {[%clk 0:01:08.3]} 28... Qxe3+ {[%clk 0:01:22.2]} 29. Kg2
{[%clk 0:01:08.7]} 29... f4 {[%clk 0:01:16.5]} 30. Rd3 {[%clk 0:00:49.2]} 30...
Qe4+ {[%clk 0:01:10.4]} 31. Qf3 {[%clk 0:00:43.8]} 31... Qg6 {[%clk 0:00:57.8]}
32. Qd5 {[%clk 0:00:40.5]} 32... Re8 {[%clk 0:00:48.1]} 33. Rdf3 {[%clk
0:00:35.7]} 33... Rbb8 {[%clk 0:00:43.4]} 34. Qxa5 {[%clk 0:00:27.2]} 34... fxg3
{[%clk 0:00:39.1]} 35. hxg3 {[%clk 0:00:24.1]} 35... Re7 {[%clk 0:00:31]} 36.
Qd5 {[%clk 0:00:20.6]} 36... Kg7 {[%clk 0:00:26.2]} 37. Rf7+ {[%clk 0:00:18]}
37... Rxf7 {[%clk 0:00:26.3]} 38. Rxf7+ {[%clk 0:00:18.6]} 38... Kh6 {[%clk
0:00:26.5]} 39. Qd2+ {[%clk 0:00:18.1]} 39... Qg5 {[%clk 0:00:22.8]} 40. Rxh7+
{[%clk 0:00:17]} 40... Kxh7 {[%clk 0:00:22.8]} 41. Qxg5 {[%clk 0:00:16.6]} 1-0

[Event "Early-Titled-Tuesday-Blitz-October-10-2023"]
[Site "Chess.com"]
[Date "2023.10.10"]
[Round "10"]
[White "Smiechu"]
[Black "LileKoridze"]
[Result "1-0"]
[WhiteElo "2496"]
[BlackElo "2351"]
[TimeControl "180+1"]
[EndTime "9:53:55 PDT"]
[Termination "Smiechu won by resignation"]

1. e4 {[%clk 0:03:00.9]} 1... c5 {[%clk 0:02:58.1]} 2. Nf3 {[%clk 0:03:01]} 2...
d6 {[%clk 0:02:57.7]} 3. d4 {[%clk 0:03:01.1]} 3... cxd4 {[%clk 0:02:58.2]} 4.
Nxd4 {[%clk 0:03:01.8]} 4... Nf6 {[%clk 0:02:58.4]} 5. Nc3 {[%clk 0:03:02.2]}
5... a6 {[%clk 0:02:58.8]} 6. Be3 {[%clk 0:03:02.3]} 6... e5 {[%clk 0:02:58.8]}
7. Nb3 {[%clk 0:03:02.3]} 7... Be7 {[%clk 0:02:58.3]} 8. Qd2 {[%clk 0:03:02.6]}
8... O-O {[%clk 0:02:58.5]} 9. O-O-O {[%clk 0:03:02.5]} 9... Be6 {[%clk
0:02:58.5]} 10. f4 {[%clk 0:03:02.6]} 10... Nbd7 {[%clk 0:02:49.4]} 11. f5
{[%clk 0:03:02]} 11... Bxb3 {[%clk 0:02:49.3]} 12. axb3 {[%clk 0:02:59.9]} 12...
Qc7 {[%clk 0:02:49.5]} 13. g4 {[%clk 0:02:57.7]} 13... h6 {[%clk 0:02:49]} 14.
h4 {[%clk 0:02:51.8]} 14... Nxg4 {[%clk 0:02:46.9]} 15. Rg1 {[%clk 0:02:51.8]}
15... Nxe3 {[%clk 0:02:46.7]} 16. Qxe3 {[%clk 0:02:51.6]} 16... Kh7 {[%clk
0:02:46.6]} 17. Nd5 {[%clk 0:02:46.6]} 17... Qd8 {[%clk 0:02:45.5]} 18. Bh3
{[%clk 0:02:24.2]} 18... Bxh4 {[%clk 0:02:41.9]} 19. Kb1 {[%clk 0:02:05.9]}
19... Bg5 {[%clk 0:02:39.8]} 20. Qf3 {[%clk 0:02:02.7]} 20... f6 {[%clk
0:02:31.2]} 21. Bg4 {[%clk 0:01:52.1]} 21... Nb6 {[%clk 0:02:29.4]} 22. Nc3
{[%clk 0:01:45.4]} 22... Qc7 {[%clk 0:02:29]} 23. Bh5 {[%clk 0:01:42.3]} 23...
Rac8 {[%clk 0:02:27.4]} 24. Bg6+ {[%clk 0:01:41.6]} 24... Kg8 {[%clk 0:02:26.9]}
25. Qd3 {[%clk 0:01:14.8]} 25... Rfd8 {[%clk 0:02:25.5]} 26. Nd5 {[%clk
0:00:56.1]} 26... Nxd5 {[%clk 0:02:24.1]} 27. Qxd5+ {[%clk 0:00:56.3]} 27... Kf8
{[%clk 0:02:24.5]} 28. c4 {[%clk 0:00:53.6]} 28... b5 {[%clk 0:02:22.4]} 29.
Rdf1 {[%clk 0:00:48]} 29... Rd7 {[%clk 0:02:13.4]} 30. Bh7 {[%clk 0:00:42.5]}
30... Ke7 {[%clk 0:02:09.4]} 31. Bg6 {[%clk 0:00:34.2]} 31... Kf8 {[%clk
0:02:06.5]} 32. Rxg5 {[%clk 0:00:33.3]} 32... fxg5 {[%clk 0:02:03.1]} 33. f6
{[%clk 0:00:33.7]} 33... gxf6 {[%clk 0:01:59.7]} 34. Qe6 {[%clk 0:00:31.8]}
34... Kg7 {[%clk 0:01:50.6]} 35. Qxf6+ {[%clk 0:00:27.2]} 35... Kg8 {[%clk
0:01:50.7]} 36. Bf5 {[%clk 0:00:25.4]} 36... Rf7 {[%clk 0:00:16]} 37. Be6 {[%clk
0:00:23.8]} 37... Rf8 {[%clk 0:00:14.2]} 38. Qg6+ {[%clk 0:00:23.9]} 38... Kh8
{[%clk 0:00:14.1]} 39. Qxh6+ {[%clk 0:00:23.2]} 39... Kg8 {[%clk 0:00:13.8]} 40.
Qg6+ {[%clk 0:00:23.5]} 1-0

[Event "Early-Titled-Tuesday-Blitz-October-10-2023"]
[Site "Chess.com"]
[Date "2023.10.10"]
[Round "10"]
[White "secretsuperstar7"]
[Black "Zurability"]
[Result "0-1"]
[WhiteElo "2458"]
[BlackElo "2725"]
[TimeControl "180+1"]
[EndTime "9:54:03 PDT"]
[Termination "Zurability won by checkmate"]

1. c4 {[%clk 0:03:00.9]} 1... Nf6 {[%clk 0:02:58.5]} 2. Nc3 {[%clk 0:03:00.2]}
2... e5 {[%clk 0:02:56.5]} 3. g3 {[%clk 0:03:00]} 3... Bc5 {[%clk 0:02:55.8]} 4.
Bg2 {[%clk 0:03:00]} 4... O-O {[%clk 0:02:56.4]} 5. e4 {[%clk 0:02:55.5]} 5...
Nc6 {[%clk 0:02:56.1]} 6. Nge2 {[%clk 0:02:55.5]} 6... Ng4 {[%clk 0:02:50.9]} 7.
O-O {[%clk 0:02:55.2]} 7... Qf6 {[%clk 0:02:48.6]} 8. Qe1 {[%clk 0:02:51.6]}
8... Nb4 {[%clk 0:02:37.2]} 9. Nd5 {[%clk 0:02:50.7]} 9... Qh6 {[%clk
0:02:37.2]} 10. h3 {[%clk 0:02:43.5]} 10... Nd3 {[%clk 0:02:19.7]} 11. Qd1
{[%clk 0:02:39.8]} 11... Ngxf2 {[%clk 0:02:17.8]} 12. Rxf2 {[%clk 0:02:29]}
12... Bxf2+ {[%clk 0:01:59.7]} 13. Kh2 {[%clk 0:02:28.1]} 13... d6 {[%clk
0:01:54.9]} 14. Qb3 {[%clk 0:02:25.4]} 14... Nxc1 {[%clk 0:01:51.6]} 15. Rxc1
{[%clk 0:02:26.2]} 15... c6 {[%clk 0:01:46.1]} 16. Ne7+ {[%clk 0:02:04.1]} 16...
Kh8 {[%clk 0:01:40.6]} 17. Rf1 {[%clk 0:02:01.9]} 17... Bb6 {[%clk 0:01:37.2]}
18. c5 {[%clk 0:01:53.3]} 18... Be6 {[%clk 0:01:30.1]} 19. Qf3 {[%clk
0:01:29.1]} 19... Bxc5 {[%clk 0:01:26.7]} 20. d3 {[%clk 0:01:27.3]} 20... Qe3
{[%clk 0:01:11.1]} 21. Qh5 {[%clk 0:01:25.6]} 21... Rae8 {[%clk 0:01:05.3]} 22.
Rf3 {[%clk 0:00:52]} 22... Qd2 {[%clk 0:00:42.4]} 23. d4 {[%clk 0:00:51.3]}
23... exd4 {[%clk 0:00:38.3]} 24. Rf4 {[%clk 0:00:36.7]} 24... Rxe7 {[%clk
0:00:35.5]} 25. Rh4 {[%clk 0:00:34.5]} 25... h6 {[%clk 0:00:35.1]} 26. Nf4
{[%clk 0:00:33.3]} 26... d3 {[%clk 0:00:30.7]} 27. Qg5 {[%clk 0:00:27.2]} 27...
Qf2 {[%clk 0:00:16.9]} 28. Rxh6+ {[%clk 0:00:23.6]} 28... Kg8 {[%clk 0:00:17.5]}
29. g4 {[%clk 0:00:07.4]} 29... Qg1+ {[%clk 0:00:14.3]} 30. Kg3 {[%clk
0:00:07.4]} 30... Qf2+ {[%clk 0:00:11]} 31. Kh2 {[%clk 0:00:07.4]} 31... Be3
{[%clk 0:00:11.4]} 32. Rf6 {[%clk 0:00:04.3]} 32... Qg1+ {[%clk 0:00:08.4]} 33.
Kg3 {[%clk 0:00:04.1]} 33... Qe1+ {[%clk 0:00:09.1]} 34. Kh2 {[%clk 0:00:04.2]}
34... Bg1+ {[%clk 0:00:09]} 35. Kh1 {[%clk 0:00:01.4]} 35... Bf2+ {[%clk
0:00:09.9]} 36. Kh2 {[%clk 0:00:01.8]} 36... Qg1# {[%clk 0:00:10.3]} 0-1

[Event "Early-Titled-Tuesday-Blitz-October-10-2023"]
[Site "Chess.com"]
[Date "2023.10.10"]
[Round "10"]
[White "GaiozNigalidze"]
[Black "THE_PLAYER6"]
[Result "1-0"]
[WhiteElo "2731"]
[BlackElo "2558"]
[TimeControl "180+1"]
[EndTime "9:54:05 PDT"]
[Termination "GaiozNigalidze won by checkmate"]

1. d4 {[%clk 0:03:00.9]} 1... Nf6 {[%clk 0:02:59.8]} 2. c4 {[%clk 0:03:00.1]}
2... e6 {[%clk 0:03:00.1]} 3. Nf3 {[%clk 0:02:59.9]} 3... d5 {[%clk 0:02:54.4]}
4. Nc3 {[%clk 0:02:59.3]} 4... a6 {[%clk 0:02:53.7]} 5. cxd5 {[%clk 0:02:55.1]}
5... exd5 {[%clk 0:02:53.6]} 6. Bf4 {[%clk 0:02:55.2]} 6... Bd6 {[%clk
0:02:51.1]} 7. g3 {[%clk 0:02:53.3]} 7... Bxf4 {[%clk 0:02:49.7]} 8. gxf4 {[%clk
0:02:53.2]} 8... c6 {[%clk 0:02:34.1]} 9. Bg2 {[%clk 0:02:47.1]} 9... O-O {[%clk
0:02:28]} 10. O-O {[%clk 0:02:46.8]} 10... Re8 {[%clk 0:02:23]} 11. e3 {[%clk
0:02:41]} 11... Ne4 {[%clk 0:02:22.7]} 12. Nxe4 {[%clk 0:02:36.3]} 12... dxe4
{[%clk 0:02:22.5]} 13. Nd2 {[%clk 0:02:34]} 13... f5 {[%clk 0:02:22.1]} 14. Nc4
{[%clk 0:02:27.7]} 14... Be6 {[%clk 0:02:16.9]} 15. Ne5 {[%clk 0:02:27.5]} 15...
Qc7 {[%clk 0:02:14.7]} 16. Rc1 {[%clk 0:02:22.9]} 16... Nd7 {[%clk 0:02:14.6]}
17. d5 {[%clk 0:02:13.9]} 17... Bf7 {[%clk 0:02:00.5]} 18. Nxf7 {[%clk
0:01:39.7]} 18... Kxf7 {[%clk 0:02:01.4]} 19. dxc6 {[%clk 0:01:40]} 19... bxc6
{[%clk 0:02:00.9]} 20. Qb3+ {[%clk 0:01:40.6]} 20... Re6 {[%clk 0:01:59.4]} 21.
Rfd1 {[%clk 0:01:38.9]} 21... Nf6 {[%clk 0:01:58]} 22. Bf1 {[%clk 0:01:35.6]}
22... Ke7 {[%clk 0:01:49.9]} 23. Rc5 {[%clk 0:01:25.3]} 23... g6 {[%clk
0:01:44.9]} 24. Bc4 {[%clk 0:00:51.3]} 24... Rd6 {[%clk 0:01:41.4]} 25. Re5+
{[%clk 0:00:34.7]} 25... Kf8 {[%clk 0:01:37.4]} 26. Rxd6 {[%clk 0:00:29.1]}
26... Qxd6 {[%clk 0:01:38.3]} 27. Re6 {[%clk 0:00:29.5]} 27... Qd8 {[%clk
0:01:35.2]} 28. Qb7 {[%clk 0:00:20.9]} 28... Nd7 {[%clk 0:01:06.5]} 29. Rd6
{[%clk 0:00:17.8]} 29... Ke7 {[%clk 0:01:06.8]} 30. Qxc6 {[%clk 0:00:17.2]}
30... Rc8 {[%clk 0:01:04.6]} 31. Re6+ {[%clk 0:00:16]} 31... Kf8 {[%clk
0:01:04.9]} 32. Qd5 {[%clk 0:00:13.2]} 32... Qc7 {[%clk 0:00:38.9]} 33. Rc6
{[%clk 0:00:10]} 33... Nf6 {[%clk 0:00:30.9]} 34. Rxc7 {[%clk 0:00:07]} 34...
Rxc7 {[%clk 0:00:30.8]} 35. Qd6+ {[%clk 0:00:07.2]} 35... Re7 {[%clk 0:00:30.2]}
36. Qxf6+ {[%clk 0:00:07.4]} 36... Ke8 {[%clk 0:00:31.1]} 37. Bxa6 {[%clk
0:00:07.5]} 37... Kd8 {[%clk 0:00:32]} 38. Bb5 {[%clk 0:00:07.4]} 38... Kc7
{[%clk 0:00:32.2]} 39. Qxe7+ {[%clk 0:00:07.1]} 39... Kb6 {[%clk 0:00:33.1]} 40.
Bc4 {[%clk 0:00:07.2]} 40... Ka5 {[%clk 0:00:33.2]} 41. b4+ {[%clk 0:00:07.4]}
41... Ka4 {[%clk 0:00:34.1]} 42. b5 {[%clk 0:00:05.4]} 42... g5 {[%clk
0:00:33.8]} 43. Qc5 {[%clk 0:00:05.7]} 43... h5 {[%clk 0:00:34.7]} 44. Bb3+
{[%clk 0:00:06.4]} 44... Ka5 {[%clk 0:00:34.4]} 45. b6+ {[%clk 0:00:07.3]} 45...
Ka6 {[%clk 0:00:35.3]} 46. Bc4+ {[%clk 0:00:08.1]} 46... Kb7 {[%clk 0:00:36.2]}
47. Qc7+ {[%clk 0:00:08.7]} 47... Ka8 {[%clk 0:00:36.1]} 48. Bd5# {[%clk
0:00:09.6]} 1-0

[Event "Early-Titled-Tuesday-Blitz-October-10-2023"]
[Site "Chess.com"]
[Date "2023.10.10"]
[Round "10"]
[White "Zavgorodniy_Sergiy"]
[Black "motivated_bishop"]
[Result "0-1"]
[WhiteElo "2638"]
[BlackElo "2513"]
[TimeControl "180+1"]
[EndTime "9:54:06 PDT"]
[Termination "motivated_bishop won by resignation"]

1. e4 {[%clk 0:03:00.9]} 1... e5 {[%clk 0:02:43.3]} 2. Nf3 {[%clk 0:03:00.1]}
2... Nc6 {[%clk 0:02:43.3]} 3. d3 {[%clk 0:02:56.7]} 3... Nf6 {[%clk 0:02:41.8]}
4. Be2 {[%clk 0:02:56.1]} 4... d5 {[%clk 0:02:42]} 5. exd5 {[%clk 0:02:57]} 5...
Nxd5 {[%clk 0:02:42.5]} 6. O-O {[%clk 0:02:57.3]} 6... Bc5 {[%clk 0:02:42.2]} 7.
c3 {[%clk 0:02:56.4]} 7... O-O {[%clk 0:02:42.1]} 8. Nxe5 {[%clk 0:02:56.6]}
8... Nxe5 {[%clk 0:02:42]} 9. d4 {[%clk 0:02:56.9]} 9... Bd6 {[%clk 0:02:42.1]}
10. dxe5 {[%clk 0:02:57.6]} 10... Bxe5 {[%clk 0:02:43]} 11. Bf3 {[%clk 0:02:58]}
11... Be6 {[%clk 0:02:38.7]} 12. Re1 {[%clk 0:02:57.8]} 12... Bf6 {[%clk
0:02:30.7]} 13. Nd2 {[%clk 0:02:56.7]} 13... c6 {[%clk 0:02:17.6]} 14. Ne4
{[%clk 0:02:55.7]} 14... Be7 {[%clk 0:02:14.6]} 15. Ng3 {[%clk 0:02:56.2]} 15...
Qc7 {[%clk 0:02:09.2]} 16. Qc2 {[%clk 0:02:56.8]} 16... Rfe8 {[%clk 0:02:05.6]}
17. Bd2 {[%clk 0:02:38.4]} 17... Rad8 {[%clk 0:02:04.6]} 18. Rad1 {[%clk
0:02:38.4]} 18... a5 {[%clk 0:01:52.6]} 19. Bc1 {[%clk 0:02:35.7]} 19... b5
{[%clk 0:01:52.3]} 20. Nf5 {[%clk 0:02:23]} 20... Bf6 {[%clk 0:01:44.6]} 21. Nd4
{[%clk 0:02:19.6]} 21... Bd7 {[%clk 0:01:34.2]} 22. Bxd5 {[%clk 0:02:15.6]}
22... cxd5 {[%clk 0:01:32.7]} 23. Rxe8+ {[%clk 0:02:05.4]} 23... Rxe8 {[%clk
0:01:32.2]} 24. Be3 {[%clk 0:02:06.1]} 24... Qc4 {[%clk 0:01:21.2]} 25. a3
{[%clk 0:01:54.9]} 25... h6 {[%clk 0:01:13.8]} 26. Qd2 {[%clk 0:01:54]} 26...
Bg4 {[%clk 0:01:11.6]} 27. Ra1 {[%clk 0:01:49.3]} 27... Rb8 {[%clk 0:00:58.4]}
28. f3 {[%clk 0:01:44.1]} 28... Bh5 {[%clk 0:00:54.6]} 29. Rd1 {[%clk
0:01:44.5]} 29... b4 {[%clk 0:00:48.7]} 30. cxb4 {[%clk 0:01:44.7]} 30... axb4
{[%clk 0:00:48.7]} 31. b3 {[%clk 0:01:45.4]} 31... Qc3 {[%clk 0:00:46.7]} 32.
Qxc3 {[%clk 0:01:36.3]} 32... bxc3 {[%clk 0:00:46.3]} 33. b4 {[%clk 0:01:36.9]}
33... Bg6 {[%clk 0:00:41.6]} 34. Nc6 {[%clk 0:01:24.1]} 34... Re8 {[%clk
0:00:35]} 35. Kf2 {[%clk 0:01:17]} 35... c2 {[%clk 0:00:32.8]} 36. Rh1 {[%clk
0:01:10.2]} 36... Bd3 {[%clk 0:00:12.5]} 37. Nd4 {[%clk 0:00:51.3]} 37... Rc8
{[%clk 0:00:07.8]} 38. b5 {[%clk 0:00:38.1]} 38... Bxd4 {[%clk 0:00:06.5]} 39.
Bxd4 {[%clk 0:00:37.4]} 39... c1=Q {[%clk 0:00:06.9]} 40. Rxc1 {[%clk
0:00:37.6]} 40... Rxc1 {[%clk 0:00:07.8]} 41. b6 {[%clk 0:00:36.8]} 41... Rb1
{[%clk 0:00:05.8]} 42. a4 {[%clk 0:00:37.5]} 42... Ba6 {[%clk 0:00:06]} 43. a5
{[%clk 0:00:37.6]} 43... f6 {[%clk 0:00:06]} 44. Ke3 {[%clk 0:00:37.5]} 44...
Kf7 {[%clk 0:00:06.3]} 0-1

[Event "Early-Titled-Tuesday-Blitz-October-10-2023"]
[Site "Chess.com"]
[Date "2023.10.10"]
[Round "10"]
[White "Anton_Demchenko"]
[Black "MikaelyanArman"]
[Result "1-0"]
[WhiteElo "3029"]
[BlackElo "2860"]
[TimeControl "180+1"]
[EndTime "9:54:07 PDT"]
[Termination "Anton_Demchenko won on time"]

1. e4 {[%clk 0:03:00.9]} 1... e5 {[%clk 0:03:00.3]} 2. Nf3 {[%clk 0:03:00.6]}
2... Nc6 {[%clk 0:03:00.8]} 3. Bc4 {[%clk 0:03:00.4]} 3... Nf6 {[%clk
0:02:58.9]} 4. d3 {[%clk 0:03:00.9]} 4... Bc5 {[%clk 0:02:59]} 5. Bg5 {[%clk
0:03:00.4]} 5... h6 {[%clk 0:02:58.7]} 6. Bh4 {[%clk 0:03:00.7]} 6... g5 {[%clk
0:02:37.7]} 7. Bg3 {[%clk 0:03:00.8]} 7... d6 {[%clk 0:02:38.3]} 8. c3 {[%clk
0:03:01.3]} 8... Bb6 {[%clk 0:02:32.7]} 9. Nbd2 {[%clk 0:02:58.8]} 9... Be6
{[%clk 0:02:27.9]} 10. a4 {[%clk 0:02:51.9]} 10... a6 {[%clk 0:02:19.4]} 11. b4
{[%clk 0:02:51.3]} 11... d5 {[%clk 0:02:11.3]} 12. exd5 {[%clk 0:02:24]} 12...
Nxd5 {[%clk 0:02:12.2]} 13. Qb3 {[%clk 0:01:41.5]} 13... Qd7 {[%clk 0:01:12]}
14. Nxe5 {[%clk 0:01:19.3]} 14... Nxe5 {[%clk 0:01:12]} 15. Bxe5 {[%clk
0:01:20.2]} 15... f6 {[%clk 0:01:12.2]} 16. Ne4 {[%clk 0:00:41.1]} 16... O-O-O
{[%clk 0:01:05.9]} 17. Nxf6 {[%clk 0:00:35.9]} 17... Qf7 {[%clk 0:01:05.6]} 18.
O-O {[%clk 0:00:31.8]} 18... Kb8 {[%clk 0:00:59.1]} 19. d4 {[%clk 0:00:23.6]}
19... Nf4 {[%clk 0:00:35.7]} 20. Bxe6 {[%clk 0:00:19.6]} 20... Nxe6 {[%clk
0:00:36.6]} 21. a5 {[%clk 0:00:18.7]} 21... Ba7 {[%clk 0:00:37]} 22. b5 {[%clk
0:00:18.2]} 22... axb5 {[%clk 0:00:31]} 23. Qxb5 {[%clk 0:00:18.8]} 23... Ka8
{[%clk 0:00:20.2]} 24. a6 {[%clk 0:00:18.4]} 24... c6 {[%clk 0:00:17.8]} 25.
axb7+ {[%clk 0:00:16.7]} 25... Qxb7 {[%clk 0:00:17.7]} 26. Qa4 {[%clk
0:00:17.4]} 26... Rc8 {[%clk 0:00:06.9]} 27. Rfb1 {[%clk 0:00:16.6]} 27... Qe7
{[%clk 0:00:07.1]} 28. Ne4 {[%clk 0:00:14.7]} 28... Nf4 {[%clk 0:00:06.6]} 29.
Kh1 {[%clk 0:00:04.8]} 29... Ne2 {[%clk 0:00:06.6]} 30. Qc4 {[%clk 0:00:05.2]}
30... Rhf8 {[%clk 0:00:04.8]} 31. Qxe2 {[%clk 0:00:04.7]} 31... g4 {[%clk
0:00:03.1]} 32. Nc5 {[%clk 0:00:04.5]} 32... g3 {[%clk 0:00:01.9]} 33. hxg3
{[%clk 0:00:04.2]} 1-0